fUSD/lending_fUSD_20250330
["ID","MTS","AMOUNT","RATE_DAILY","PERIOD"]
[356867461,1743346247432,-500.0,0.00049589,120]
[356867463,1743346247440,-1194.86,0.00049589,120]
[356867465,1743346247450,-500.0,0.00049589,120]
[356867467,1743346247459,-500.0,0.00049589,120]
[356867469,1743346247469,-1492.47,0.00049589,120]
[356867471,1743346247478,-500.0,0.00049589,120]
[356867473,1743346247489,-500.0,0.00049589,120]
[356867475,1743346247498,-500.0,0.00049589,2]
[356867477,1743346247507,-500.0,0.00049589,120]
[356867479,1743346247516,-500.0,0.00049589,120]
[356867480,1743346247525,-545.11677871,0.00049589,120]
[356867482,1743346247535,-499.99979345,0.00049589,120]
[356867484,1743346247544,-1345.57,0.00049589,120]
[356867486,1743346247553,-634.73,0.00049589,120]
[356867488,1743346247563,-500.0,0.00049589,120]
[356867490,1743346247572,-198.01786465,0.00049589,120]
[356867492,1743346247581,-500.0,0.00049589,120]
[356867494,1743346247591,-500.0,0.00049589,120]
[356867496,1743346247600,-542.75,0.00049589,120]
[356867498,1743346247609,-390.96003748,0.00049589,120]
[356867500,1743346247618,-500.0,0.00049589,120]
[356867501,1743346247629,-942.51,0.00049589,120]
[356867503,1743346247638,-1289.53,0.00049589,7]
[356867505,1743346247647,-500.0,0.00049589,120]
[356867507,1743346247657,-2763.1,0.00049589,120]
[356867509,1743346247667,-500.0,0.00049589,120]
[356867511,1743346247675,-500.0,0.00049589,120]
[356867513,1743346247686,-531.25082691,0.00049589,120]
[356867515,1743346247695,-521.18,0.00049589,120]
[356867517,1743346247704,-500.0,0.00049589,120]
[356867519,1743346247713,-3033.67,0.00049589,120]
[356867520,1743346247723,-500.0,0.00049589,120]
[356867522,1743346247732,-500.0,0.00049589,120]
[356867524,1743346247741,-500.0,0.00049589,120]
[356867526,1743346247751,-500.0,0.00049589,120]
[356867528,1743346247760,-553.63847007,0.00049589,120]
[356867530,1743346247770,-500.0,0.00049589,120]
[356867531,1743346247779,-500.0,0.00049589,120]
[356867532,1743346247789,-500.0,0.00049589,120]
[356867533,1743346247798,-500.0,0.00049589,120]
[356867534,1743346247807,-562.50831174,0.00049589,120]
[356867535,1743346247817,-500.0,0.00049589,120]
[356867536,1743346247827,-500.0,0.00049589,120]
[356867537,1743346247836,-500.0,0.00049589,120]
[356867538,1743346247846,-500.0,0.00049589,120]
[356867539,1743346247855,-500.0,0.00049589,120]
[356867540,1743346247864,-500.0,0.00049589,120]
[356867541,1743346247874,-1628.66,0.00049589,120]
[356867542,1743346247884,-500.0,0.00049589,120]
[356867543,1743346247894,-500.0,0.00049589,120]
[356867544,1743346247904,-500.0,0.00049589,120]
[356867545,1743346247915,-500.0,0.00049589,120]
[356867546,1743346247926,-500.0,0.00049589,120]
[356867547,1743346247938,-500.0,0.00049589,120]
[356867548,1743346247948,-500.0,0.00049589,120]
[356867549,1743346247959,-500.0,0.00049589,120]
[356867550,1743346247969,-500.0,0.00049589,120]
[356867551,1743346247979,-500.0,0.00049589,120]
[356867552,1743346247989,-2681.66,0.00049589,120]
[356867553,1743346248000,-500.0,0.00049589,120]
[356867555,1743346248010,-500.0,0.00049589,120]
[356867557,1743346248020,-500.0,0.00049589,120]
[356867559,1743346248029,-500.0,0.00049589,120]
[356867561,1743346248040,-500.0,0.00049589,120]
[356867563,1743346248050,-500.0,0.00049589,120]
[356867565,1743346248060,-500.0,0.00049863,120]
[356867567,1743346248070,-500.0,0.00049863,120]
[356867569,1743346248080,-500.0,0.00049863,120]
[356867571,1743346248090,-808.39,0.00049863,120]
[356867572,1743346248099,-1090.28,0.00049863,120]
[356867574,1743346248108,-583.44806306,0.00049863,120]
[356867577,1743346248118,-500.0,0.00049863,120]
[356867578,1743346248128,-2456.74,0.00049863,120]
[356867581,1743346248138,-500.0,0.00049863,120]
[356867582,1743346248148,-500.0,0.00049863,120]
[356867584,1743346248157,-500.0,0.00049863,120]
[356867586,1743346248168,-500.0,0.00049863,120]
[356867589,1743346248178,-582.91742839,0.00049863,120]
[356867591,1743346248188,-500.0,0.00049863,120]
[356867593,1743346248198,-193.30629972,0.00049863,120]
[356867595,1743346248209,-500.0,0.00049863,120]
[356867597,1743346248219,-318.69359324,0.00049863,120]
[356867599,1743346248228,-588.24533602,0.00049863,120]
[356867601,1743346248240,-500.0,0.00049863,120]
[356867603,1743346248249,-309.99270785,0.00049863,120]
[356867605,1743346248259,-601.23318973,0.00049863,120]
[356867607,1743346248269,-500.0,0.00049863,120]
[356867609,1743346248279,-589.26,0.00049863,120]
[356867611,1743346248288,-500.0,0.00049863,120]
[356867613,1743346248298,-500.0,0.00049863,120]
[356867615,1743346248308,-500.0,0.00049863,120]
[356867617,1743346248318,-500.0,0.00049863,120]
[356867619,1743346248327,-500.0,0.00049863,120]
[356867621,1743346248337,-500.0,0.00049863,120]
[356867623,1743346248345,-569.61743239,0.00049863,120]
[356867625,1743346248355,-2232.9,0.00049863,120]
[356867627,1743346248365,-500.0,0.00049863,120]
[356867629,1743346248374,-699.29,0.00049863,120]
[356867631,1743346248384,-530.51422137,0.00049863,120]
[356867633,1743346248393,-500.0,0.00049863,120]
[356867635,1743346248402,-500.0,0.00049863,120]
[356867637,1743346248412,-500.0,0.00049863,120]
[356867639,1743346248421,-500.0,0.00049863,120]
[356867641,1743346248430,-500.0,0.00049863,120]
[356867643,1743346248439,-450.95212332,0.00049863,120]
[356867644,1743346248449,-500.0,0.00049863,120]
[356867646,1743346248459,-568.22466146,0.00049863,120]
[356867648,1743346248468,-240.68274202,0.00049863,120]
[356867650,1743346248478,-500.0,0.00049863,120]
[356867653,1743346248487,-527.42013646,0.00049863,120]
[356867654,1743346248497,-595.91040373,0.00049863,120]
[356867656,1743346248506,-500.0,0.00049863,120]
[356867658,1743346248516,-234.24,0.00049863,7]
[356867660,1743346248525,-250.11620827,0.00049863,60]
[356867662,1743346248534,-500.0,0.00049863,120]
[356867664,1743346248545,-500.0,0.00049863,120]
[356867666,1743346248554,-500.0,0.00049863,120]
[356867668,1743346248563,-506.44,0.00049863,120]
[356867670,1743346248572,-500.0,0.00049863,120]
[356867673,1743346248582,-500.0,0.00049863,120]
[356867675,1743346248591,-500.0,0.00049863,120]
[356867676,1743346248601,-500.0,0.00049863,120]
[356867678,1743346248610,-500.0,0.00049863,120]
[356867680,1743346248619,-500.0,0.00049863,120]
[356867682,1743346248629,-500.0,0.00049863,120]
[356867684,1743346248638,-500.0,0.00049863,120]
[356867686,1743346248648,-500.0,0.00049863,120]
[356867688,1743346248658,-618.86286732,0.00049863,120]
[356867690,1743346248668,-732.51,0.00049863,120]
[356867692,1743346248678,-500.0,0.00049863,120]
[356867694,1743346248692,-2815.39,0.00049863,120]
[356867696,1743346248701,-563.90591168,0.00049863,120]
[356867698,1743346248710,-500.0,0.00049863,120]
[356867700,1743346248720,-500.0,0.00049863,120]
[356867702,1743346248729,-500.0,0.00049863,120]
[356867704,1743346248739,-500.0,0.00049863,120]
[356867707,1743346248750,-500.0,0.00049863,120]
[356867708,1743346248759,-500.0,0.00049863,120]
[356867710,1743346248769,-1274.94,0.00049863,120]
[356867712,1743346248779,-500.0,0.00049863,120]
[356867714,1743346248789,-500.0,0.00049863,120]
[356867717,1743346248798,-2015.60006881,0.00049863,30]
[356867719,1743346248808,-500.0,0.00049863,120]
[356867721,1743346248818,-500.0,0.00049863,120]
[356867723,1743346248828,-500.0,0.00049863,120]
[356867725,1743346248838,-1080.01,0.00049863,100]
[356867726,1743346248849,-500.0,0.00049863,120]
[356867729,1743346248860,-500.0,0.00049863,120]
[356867731,1743346248870,-503.33,0.00049863,120]
[356867732,1743346248879,-500.0,0.00049863,120]
[356867734,1743346248889,-500.0,0.00049863,120]
[356867736,1743346248899,-500.0,0.00049863,120]
[356867739,1743346248909,-163.72032797,0.00049863,120]
[356867741,1743346248924,-500.0,0.00049863,120]
[356867742,1743346248936,-500.0,0.00049863,120]
[356867744,1743346248946,-869.51812235,0.00049863,120]
[356867746,1743346248956,-500.0,0.00049863,120]
[356867748,1743346248967,-500.0,0.00049863,120]
[356867750,1743346248978,-500.0,0.00049863,120]
[356867752,1743346248988,-564.2906409,0.00049863,120]
[356867754,1743346249000,-500.0,0.00049863,120]
[356867756,1743346249009,-500.0,0.00049863,120]
[356867758,1743346249020,-501.06,0.00049863,120]
[356867760,1743346249030,-512.55,0.00049863,120]
[356867762,1743346249040,-500.0,0.00049863,120]
[356867764,1743346249051,-500.0,0.00049863,120]
[356867766,1743346249061,-540.33921944,0.00049863,120]
[356867768,1743346249071,-5054.95,0.00049863,120]
[356867770,1743346249080,-500.0,0.00049863,120]
[356867772,1743346249090,-1035.75,0.00049863,120]
[356867774,1743346249100,-500.0,0.00049863,120]
[356867776,1743346249109,-500.0,0.00049863,120]
[356867778,1743346249119,-500.0,0.00049863,120]
[356867780,1743346249128,-500.0,0.00049863,120]
[356867782,1743346249138,-500.0,0.00049863,120]
[356867784,1743346249148,-500.0,0.00049863,120]
[356867786,1743346249159,-500.0,0.00049863,120]
[356867788,1743346249169,-500.0,0.00049863,120]
[356867790,1743346249180,-935.26,0.00049863,120]
[356867792,1743346249197,-500.0,0.00049863,15]
[356867794,1743346249207,-1671.16,0.00049863,120]
[356867797,1743346249218,-235.56495805,0.00049863,120]
[356867799,1743346249229,-500.0,0.00049863,120]
[356867801,1743346249239,-500.0,0.00049863,120]
[356867815,1743346249369,-353.64877705,0.00049863,120]
[356867817,1743346249379,-1184.02,0.00049863,120]
[356867819,1743346249389,-500.0,0.00049863,120]
[356867821,1743346249400,-500.0,0.00049863,120]
[356867823,1743346249409,-500.0,0.00049863,120]
[356867825,1743346249419,-525.91393454,0.00049863,120]
[356867827,1743346249429,-804.42,0.00049863,120]
[356867829,1743346249443,-500.0,0.00049863,120]
[356867831,1743346249453,-500.0,0.00049863,120]
[356867833,1743346249463,-500.0,0.00049863,120]
[356867835,1743346249473,-500.0,0.00049863,120]
[356867837,1743346249483,-500.0,0.00049863,120]
[356867839,1743346249492,-500.0,0.00049863,120]
[356867840,1743346249502,-500.0,0.00049863,120]
[356867842,1743346249512,-500.0,0.00049863,120]
[356867843,1743346249522,-1247.17,0.00049863,120]
[356867844,1743346249532,-569.24549363,0.00049863,120]
[356867845,1743346249542,-500.0,0.00049863,120]
[356867846,1743346249552,-500.0,0.00049863,120]
[356867847,1743346249562,-500.0,0.00049863,120]
[356867848,1743346249571,-500.0,0.00049863,120]
[356867849,1743346249582,-500.0,0.00049863,120]
[356867850,1743346249592,-500.0,0.00049863,120]
[356867851,1743346249601,-500.0,0.00049863,120]
[356867852,1743346249611,-500.0,0.00049863,120]
[356867853,1743346249622,-377.3207191,0.00049863,120]
[356867854,1743346249634,-500.0,0.00049863,120]
[356867855,1743346249644,-1154.63257955,0.00049863,120]
[356867856,1743346249653,-500.0,0.00049863,120]
[356867857,1743346249663,-500.0,0.00049863,120]
[356867858,1743346249672,-500.0,0.00049863,120]
[356867859,1743346249681,-3995.83,0.00049863,120]
[356867860,1743346249692,-500.0,0.00049863,120]
[356867861,1743346249702,-500.0,0.00049863,120]
[356867862,1743346249712,-500.0,0.00049863,120]
[356867863,1743346249722,-500.0,0.00049863,120]
[356867864,1743346249731,-500.0,0.00049863,120]
[356867865,1743346249740,-551.86,0.00049863,120]
[356867866,1743346249749,-500.0,0.00049863,120]
[356867867,1743346249759,-500.0,0.00049863,120]
[356867868,1743346249768,-155.35474269,0.00049863,120]
[356867869,1743346249777,-500.0,0.00049863,120]
[356867870,1743346249786,-500.0,0.00049863,120]
[356867871,1743346249795,-1144.31,0.00049863,120]
[356867872,1743346249804,-500.0,0.00049863,120]
[356867873,1743346249814,-500.0,0.00049863,120]
[356867874,1743346249824,-500.0,0.00049863,120]
[356867875,1743346249833,-500.0,0.00049863,120]
[356867876,1743346249842,-500.0,0.00049863,120]
[356867877,1743346249852,-500.0,0.00049863,120]
[356867878,1743346249862,-500.0,0.00049863,120]
[356867879,1743346249871,-500.0,0.00049863,120]
[356867880,1743346249880,-5469.89,0.00049863,120]
[356867881,1743346249890,-500.0,0.00049863,120]
[356867882,1743346249899,-500.0,0.00049863,120]
[356867883,1743346249908,-500.0,0.00049863,120]
[356867884,1743346249921,-634.12,0.00049863,120]
[356867885,1743346249930,-600.42614108,0.00049863,120]
[356867886,1743346249941,-500.0,0.00049863,120]
[356867887,1743346249951,-500.0,0.00049863,120]
[356867888,1743346249963,-500.0,0.00049863,120]
[356867889,1743346249972,-315.67980048,0.00049863,120]
[356867890,1743346249982,-1000.0,0.00049863,120]
[356867891,1743346249992,-500.0,0.00049863,120]
[356867892,1743346250002,-500.0,0.00049863,120]
[356867893,1743346250012,-765.27,0.00049863,120]
[356867894,1743346250022,-223.03121007,0.00049863,120]
[356867895,1743346250031,-442.47379009,0.00049863,120]
[356867896,1743346250041,-553.68,0.00049863,120]
[356867897,1743346250050,-500.0,0.00049863,120]
[356867898,1743346250059,-500.0,0.00049863,120]
[356867899,1743346250068,-500.0,0.00049863,120]
[356867900,1743346250078,-500.0,0.00049863,120]
[356867901,1743346250087,-500.0,0.00049863,120]
[356867902,1743346250096,-575.87864671,0.00049863,120]
[356867903,1743346250106,-500.0,0.00049863,120]
[356867904,1743346250115,-575.36034253,0.00049863,120]
[356867905,1743346250125,-1194.86,0.00049863,120]
[356867906,1743346250134,-572.71695536,0.00049863,120]
[356867907,1743346250143,-1492.47,0.00049863,120]
[356867908,1743346250153,-560.94557078,0.00049863,120]
[356867909,1743346250163,-609.79538298,0.00049863,2]
[356867910,1743346250172,-500.0,0.00049863,120]
[356867911,1743346250182,-500.0,0.00049863,120]
[356867912,1743346250194,-1345.57,0.00049863,120]
[356867913,1743346250203,-634.73,0.00049863,120]
[356867914,1743346250213,-500.0,0.00049863,120]
[356867915,1743346250222,-500.0,0.00049863,120]
[356867916,1743346250232,-500.0,0.00049863,120]
[356867917,1743346250242,-542.75,0.00049863,120]
[356867918,1743346250251,-500.0,0.00049863,120]
[356867919,1743346250261,-942.51,0.00049863,120]
[356867920,1743346250270,-1289.53,0.00049863,7]
[356867921,1743346250279,-500.0,0.00049863,120]
[356867922,1743346250289,-2763.1,0.00049863,120]
[356867923,1743346250298,-500.0,0.00049863,120]
[356867924,1743346250308,-500.0,0.00049863,120]
[356867925,1743346250317,-521.18,0.00049863,120]
[356867926,1743346250327,-500.0,0.00049863,120]
[356867927,1743346250336,-3033.67,0.00049863,120]
[356867928,1743346250345,-500.0,0.00049863,120]
[356867929,1743346250355,-500.0,0.00049863,120]
[356867930,1743346250364,-500.0,0.00049863,120]
[356867931,1743346250374,-500.0,0.00049863,120]
[356867932,1743346250383,-500.0,0.00049863,120]
[356867933,1743346250393,-500.0,0.00049863,120]
[356867934,1743346250402,-204.52901058,0.00049863,120]
[356867935,1743346250412,-500.0,0.00049863,120]
[356867936,1743346250422,-500.0,0.00049863,120]
[356867937,1743346250431,-500.0,0.00049863,120]
[356867938,1743346250442,-500.0,0.00049863,120]
[356867939,1743346250452,-500.0,0.00049863,120]
[356867940,1743346250462,-500.0,0.00049863,120]
[356867941,1743346250472,-500.0,0.00049863,120]
[356867942,1743346250483,-1628.66,0.00049863,120]
[356867943,1743346250492,-500.0,0.00049863,120]
[356867944,1743346250502,-500.0,0.00049863,120]
[356867945,1743346250512,-500.0,0.00049863,120]
[356867946,1743346250522,-500.0,0.00049863,120]
[356867947,1743346250531,-500.0,0.00049863,120]
[356867948,1743346250542,-433.20446459,0.00049863,120]
[356867949,1743346250552,-500.0,0.00049863,120]
[356867950,1743346250562,-500.0,0.00049863,120]
[356867951,1743346250572,-500.0,0.00049863,120]
[356867952,1743346250582,-500.0,0.00049863,120]
[356867953,1743346250591,-2681.66,0.00049863,120]
[356867954,1743346250601,-500.0,0.00049863,120]
[356867955,1743346250610,-500.0,0.00049863,120]
[356867956,1743346250620,-500.0,0.00049863,120]
[356867957,1743346250629,-500.0,0.00049863,120]
[356867958,1743346250638,-500.0,0.00049863,120]
[356867959,1743346250647,-250.0,0.0005,120]
[356867960,1743346250657,-1351.16,0.0005,120]
[356867961,1743346250666,-167.27,0.00050036,2]
[356867962,1743346250675,-500.0,0.00050136,120]
[356867963,1743346250685,-321.62891199,0.00050136,120]
[356867964,1743346250695,-500.0,0.00050136,120]
[356867965,1743346250704,-808.39,0.00050136,120]
[356867966,1743346250713,-1090.28,0.00050136,120]
[356867967,1743346250723,-500.0,0.00050136,120]
[356867968,1743346250732,-2456.74,0.00050136,120]
[356867969,1743346250741,-500.0,0.00050136,120]
[356867970,1743346250751,-500.0,0.00050136,120]
[356867971,1743346250761,-500.0,0.00050136,120]
[356867972,1743346250770,-500.0,0.00050136,120]
[356867973,1743346250780,-500.0,0.00050136,120]
[356867974,1743346250790,-500.0,0.00050136,120]
[356867975,1743346250799,-255.23570567,0.00050136,120]
[356867976,1743346250809,-500.0,0.00050136,120]
[356867977,1743346250819,-589.26,0.00050136,120]
[356867978,1743346250828,-500.0,0.00050136,120]
[356867979,1743346250838,-500.0,0.00050136,120]
[356867980,1743346250848,-500.0,0.00050136,120]
[356867981,1743346250858,-500.0,0.00050136,120]
[356867982,1743346250867,-500.0,0.00050136,120]
[356867983,1743346250877,-500.0,0.00050136,120]
[356867984,1743346250886,-2232.9,0.00050136,120]
[356867985,1743346250895,-500.0,0.00050136,120]
[356867986,1743346250905,-699.29,0.00050136,120]
[356867987,1743346250915,-500.0,0.00050136,120]
[356867988,1743346250928,-500.0,0.00050136,120]
[356867989,1743346250940,-500.0,0.00050136,120]
[356867990,1743346250949,-500.0,0.00050136,120]
[356867991,1743346250959,-500.0,0.00050136,120]
[356867992,1743346250969,-500.0,0.00050136,120]
[356867993,1743346250978,-500.0,0.00050136,120]
[356867994,1743346250988,-500.0,0.00050136,120]
[356867995,1743346250999,-234.24,0.00050136,7]
[356867996,1743346251009,-500.0,0.00050136,120]
[356867997,1743346251019,-171.07548363,0.00050136,120]
[356867998,1743346251028,-500.0,0.00050136,120]
[356867999,1743346251037,-506.44,0.00050136,120]
[356868000,1743346251046,-500.0,0.00050136,120]
[356868001,1743346251056,-500.0,0.00050136,120]
[356868002,1743346251065,-500.0,0.00050136,120]
[356868003,1743346251075,-500.0,0.00050136,120]
[356868004,1743346251084,-500.0,0.00050136,120]
[356868005,1743346251094,-500.0,0.00050136,120]
[356868006,1743346251104,-218.86947629,0.00050136,120]
[356868007,1743346251113,-500.0,0.00050136,120]
[356868008,1743346251122,-500.0,0.00050136,120]
[356868009,1743346251131,-732.51,0.00050136,120]
[356868010,1743346251140,-268.71790272,0.00050136,120]
[356868011,1743346251150,-2815.39,0.00050136,120]
[356868012,1743346251160,-500.0,0.00050136,120]
[356868013,1743346251169,-500.0,0.00050136,120]
[356868014,1743346251179,-500.0,0.00050136,120]
[356868015,1743346251189,-500.0,0.00050136,120]
[356868016,1743346251199,-500.0,0.00050136,120]
[356868017,1743346251209,-1274.94,0.00050136,120]
[356868018,1743346251219,-500.0,0.00050136,120]
[356868019,1743346251228,-500.0,0.00050136,120]
[356868020,1743346251238,-500.0,0.00050136,120]
[356868021,1743346251248,-500.0,0.00050136,120]
[356868022,1743346251258,-500.0,0.00050136,120]
[356868023,1743346251267,-1080.01,0.00050136,100]
[356868024,1743346251276,-500.0,0.00050136,120]
[356868025,1743346251285,-585.80070812,0.00050136,120]
[356868026,1743346251295,-503.33,0.00050136,120]
[356868027,1743346251305,-500.0,0.00050136,120]
[356868028,1743346251314,-500.0,0.00050136,120]
[356868029,1743346251324,-500.0,0.00050136,120]
[356868030,1743346251333,-500.0,0.00050136,120]
[356868031,1743346251343,-500.0,0.00050136,120]
[356868032,1743346251352,-500.0,0.00050136,120]
[356868033,1743346251362,-500.0,0.00050136,120]
[356868034,1743346251371,-500.0,0.00050136,120]
[356868035,1743346251380,-547.19106147,0.00050136,120]
[356868036,1743346251390,-500.0,0.00050136,120]
[356868037,1743346251399,-501.06,0.00050136,120]
[356868038,1743346251409,-512.55,0.00050136,120]
[356868039,1743346251418,-500.0,0.00050136,120]
[356868040,1743346251427,-500.0,0.00050136,120]
[356868041,1743346251436,-5054.95,0.00050136,120]
[356868042,1743346251446,-500.0,0.00050136,120]
[356868043,1743346251456,-1035.75,0.00050136,120]
[356868044,1743346251466,-200.14689027,0.00050136,120]
[356868045,1743346251475,-357.97754224,0.00050136,120]
[356868046,1743346251484,-565.74556231,0.00050136,120]
[356868047,1743346251493,-500.0,0.00050136,120]
[356868048,1743346251606,-500.0,0.00050136,120]
[356868049,1743346251616,-500.0,0.00050136,120]
[356868050,1743346251626,-500.0,0.00050136,120]
[356868051,1743346251635,-500.0,0.00050136,120]
[356868052,1743346251645,-935.26,0.00050136,120]
[356868053,1743346251655,-1671.16,0.00050136,120]
[356868054,1743346251665,-500.0,0.00050136,120]
[356868055,1743346251675,-500.0,0.00050136,120]
[356868056,1743346251684,-1184.02,0.00050136,120]
[356868057,1743346251693,-500.0,0.00050136,120]
[356868058,1743346251703,-500.0,0.00050136,120]
[356868059,1743346251713,-500.0,0.00050136,120]
[356868060,1743346251722,-804.42,0.00050136,120]
[356868061,1743346251732,-500.0,0.00050136,120]
[356868062,1743346251741,-500.0,0.00050136,120]
[356868063,1743346251750,-500.0,0.00050136,120]
[356868064,1743346251759,-500.0,0.00050136,120]
[356868065,1743346251768,-500.0,0.00050136,120]
[356868066,1743346251777,-500.0,0.00050136,120]
[356868067,1743346251787,-500.0,0.00050136,120]
[356868068,1743346251796,-500.0,0.00050136,120]
[356868069,1743346251805,-1247.17,0.00050136,120]
[356868070,1743346251814,-500.0,0.00050136,120]
[356868071,1743346251823,-500.0,0.00050136,120]
[356868072,1743346251832,-500.0,0.00050136,120]
[356868073,1743346251841,-500.0,0.00050136,120]
[356868074,1743346251850,-500.0,0.00050136,120]
[356868075,1743346251859,-500.0,0.00050136,120]
[356868076,1743346251868,-500.0,0.00050136,120]
[356868077,1743346251878,-500.0,0.00050136,120]
[356868078,1743346251887,-500.0,0.00050136,120]
[356868079,1743346251896,-500.0,0.00050136,120]
[356868080,1743346251904,-500.0,0.00050136,120]
[356868081,1743346251914,-500.0,0.00050136,120]
[356868082,1743346251925,-3995.83,0.00050136,120]
[356868083,1743346251934,-500.0,0.00050136,120]
[356868084,1743346251943,-500.0,0.00050136,120]
[356868085,1743346251953,-353.39768555,0.00050136,120]
[356868086,1743346251962,-500.0,0.00050136,120]
[356868087,1743346251971,-551.86,0.00050136,120]
[356868088,1743346251980,-500.0,0.00050136,120]
[356868089,1743346251990,-500.0,0.00050136,120]
[356868090,1743346252000,-500.0,0.00050136,120]
[356868091,1743346252009,-500.0,0.00050136,120]
[356868092,1743346252019,-250.1020664,0.00050136,120]
[356868093,1743346252027,-1144.31,0.00050136,120]
[356868094,1743346252038,-628.72663208,0.00050136,120]
[356868095,1743346252048,-500.0,0.00050136,120]
[356868096,1743346252057,-639.70242257,0.00050136,120]
[356868097,1743346252066,-500.0,0.00050136,120]
[356868098,1743346252075,-500.0,0.00050136,120]
[356868099,1743346252085,-500.0,0.00050136,120]
[356868100,1743346252094,-500.0,0.00050136,120]
[356868101,1743346252104,-5469.89,0.00050136,120]
[356868102,1743346252114,-500.0,0.00050136,120]
[356868103,1743346252123,-500.0,0.00050136,120]
[356868104,1743346252132,-500.0,0.00050136,120]
[356868105,1743346252142,-634.12,0.00050136,120]
[356868106,1743346252151,-500.0,0.00050136,120]
[356868107,1743346252161,-500.0,0.00050136,120]
[356868108,1743346252170,-500.0,0.00050136,120]
[356868109,1743346252179,-236.85152576,0.00050136,120]
[356868110,1743346252189,-500.0,0.00050136,120]
[356868111,1743346252198,-500.0,0.00050136,120]
[356868112,1743346252207,-765.27,0.00050136,120]
[356868113,1743346252216,-553.68,0.00050136,120]
[356868114,1743346252226,-526.5562349,0.00050136,120]
[356868115,1743346252235,-500.0,0.00050136,120]
[356868116,1743346252244,-500.0,0.00050136,120]
[356868117,1743346252253,-500.0,0.00050136,120]
[356868118,1743346252263,-500.0,0.00050136,120]
[356868119,1743346252272,-500.0,0.00050136,120]
[356868120,1743346252281,-1194.86,0.00050136,120]
[356868121,1743346252291,-1492.47,0.00050136,120]
[356868122,1743346252300,-500.0,0.00050136,120]
[356868123,1743346252309,-500.0,0.00050136,120]
[356868124,1743346252319,-1345.57,0.00050136,120]
[356868125,1743346252327,-634.73,0.00050136,120]
[356868126,1743346252337,-500.0,0.00050136,120]
[356868127,1743346252346,-548.07737139,0.00050136,120]
[356868128,1743346252355,-265.74358975,0.00050136,120]
[356868129,1743346252364,-542.75,0.00050136,120]
[356868130,1743346252373,-500.0,0.00050136,120]
[356868131,1743346252383,-942.51,0.00050136,120]
[356868132,1743346252392,-1289.53,0.00050136,7]
[356868133,1743346252401,-500.0,0.00050136,120]
[356868134,1743346252410,-2763.1,0.00050136,120]
[356868135,1743346252420,-539.10385107,0.00050136,120]
[356868136,1743346252429,-538.9598722,0.00050136,120]
[356868137,1743346252438,-521.18,0.00050136,120]
[356868138,1743346252447,-500.0,0.00050136,120]
[356868139,1743346252457,-3033.67,0.00050136,120]
[356868140,1743346252466,-500.0,0.00050136,120]
[356868141,1743346252475,-500.0,0.00050136,120]
[356868142,1743346252484,-500.0,0.00050136,120]
[356868143,1743346252493,-500.0,0.00050136,120]